Cogmind - Beta 13 @@@ ROGUE MODE // 2024.05.16 @ 16:03:03 Player: jonasanoj Result: Destroyed by Y-64 Sentinel with Wave Gun Performance ------------- Evolutions (5) 2500 Regions Visited (7) 1400 Robots Destroyed (82) 410 Value Destroyed (2522) 2522 Prototype IDs (3) 60 Alien Tech Used (0) 0 Bonus (98) 98 TOTAL SCORE: 6990 Bonus ------- High Alert Combat Kills 15 Follower Combat Kills 83 Cogmind --------- Core Integrity 0/1000 Matter 134/300 Energy 100/100 System Corruption 9% Temperature Cool (9) Movement Core (50) Location -5/Factory Parts ------- > --- POWER (2) -------- (None) > --- PROPULSION (4) --- (None) > --- UTILITY (7) ------ Visual Processing Unit Hacking Suite > --- WEAPON (4) ------- (None) > --- INVENTORY (5) ---- Fusion Compressor Advanced Signal Interpreter Focal Shield Improved Remote Datajack Peak State ------------ > --- POWER ------------ Neutrino Core Micro Fission Core > --- PROPULSION ------- Flexi-carbon Leg > --- UTILITY ---------- Advanced Heat Sink Visual Processing Unit Advanced Sensor Array Target Analyzer Kinecellerator Force Field Hacking Suite > --- WEAPON ----------- Tesla Rifle Thermic Laser Wave Gun Great Maul > --- INVENTORY -------- Micro Fission Core Antigrav System Tesla Rifle Wave Gun KE Penetrator [Rating: 67] Favorites ----------- Power Ion Engine Engine Ion Engine Power Core Micro Nuclear Core Propulsion Aluminum Leg Leg Aluminum Leg Wheel Wheel Hover Unit Antigrav System Flight Unit Flight Unit Utility Medium Storage Unit Device Transmission Jammer Storage Medium Storage Unit Processor Signal Interpreter Hackware Hacking Suite Weapon Beam Cannon Energy Gun Thermic Laser Energy Cannon Beam Cannon Ballistic Gun Flak Gun Ballistic Cannon Heavy Flak Cannon Launcher Grenade Launcher Special Weapon Improved Remote Datajack Impact Weapon Great Maul Build | -11 -10 -10 -9 -8 -7 -6 -5 ------- Run | Yrd Mat Min Mat Mat Fac Fac Fac Slots Evolved 10 | . . . 2 2 2 2 2 Power 1 | . . . . 1 . . . Propulsion 2 | . . . 1 . . 1 . Utility 5 | . . . 1 . 2 1 1 Weapon 2 | . . . . 1 . . 1 Parts Attached 108 | 7 13 4 15 16 16 9 28 Power 23 | 2 4 . 1 4 4 1 7 Engine 12 | 2 4 . . 3 1 . 2 Core 11 | . . . 1 1 3 1 5 Reactor . | . . . . . . . . Propulsion 30 | 2 4 2 8 5 2 1 6 Treads . | . . . . . . . . Leg 21 | 2 4 . 6 5 2 1 1 Wheel 3 | . . . . . . . 3 Hover 2 | . . . . . . . 2 Flight 4 | . . 2 2 . . . . Utility 21 | 1 2 . 3 1 3 4 7 Device 13 | . . . 2 . 1 4 6 Storage 2 | 1 1 . . . . . . Processor 5 | . 1 . 1 . 2 . 1 Hackware 1 | . . . . 1 . . . Protection . | . . . . . . . . Artifact . | . . . . . . . . Weapon 34 | 2 3 2 3 6 7 3 8 Energy Gun 13 | 1 1 . 1 3 2 1 4 Energy Cannon 2 | . . 1 . . 1 . . Ballistic Gun 12 | 1 . . 2 3 3 1 2 Ballistic Cannon 2 | . 1 . . . . 1 . Launcher 3 | . 1 1 . . 1 . . Special Weapon 1 | . . . . . . . 1 Impact Weapon 1 | . . . . . . . 1 Slashing Weapon . | . . . . . . . . Piercing Weapon . | . . . . . . . . Special Melee Weapon . | . . . . . . . . Unidentified Prototypes 3 | . . . 1 2 . . . Corrupted Parts 1 | . . . . 1 . . . System Corruption 5 | . . . . 5 . . . Parts Lost 66 | . 7 3 3 11 13 . 29 Power 13 | . 1 . 1 2 4 . 5 Propulsion 17 | . 3 1 . 4 2 . 7 Utility 13 | . . . 1 1 2 . 9 Weapon 23 | . 3 2 1 4 5 . 8 Highest Loss Streak 13 | . 2 2 2 7 9 . 13 To Critical Strikes . | . . . . . . . . Average Slot Usage (%) 83 | . 92 90 97 94 79 49 71 Engine 7 | . 13 14 1 10 6 . 2 Core 4 | . . . 8 6 6 6 7 Leg 14 | . 25 7 23 26 8 2 4 Flight 3 | . . 13 9 . . . . Device 6 | . . . 11 6 6 6 16 Storage 8 | . 14 14 11 9 6 . . Processor 11 | . 9 14 10 8 14 13 10 Hackware 2 | . . . . 2 7 6 5 Energy Gun 7 | . 9 . 2 12 9 5 10 Energy Cannon 3 | . . 13 8 . 1 . . Ballistic Gun 4 | . 8 . 4 12 5 1 2 Ballistic Cannon 2 | . 5 . . . . 5 1 Launcher 3 | . 4 11 4 . . . . Naked Turns . | . . . . . . . . Heaviest Build 58 | 14 21 22 24 35 39 36 58 Greatest Support 40 | 20 20 20 30 40 20 20 30 Greatest Overweight (x) 12 | 4 2 4 1 5 6 5 12 Average Overweight (x) 1 | . . 1 . . 1 1 1 Largest Inventory Capacity 10 | 8 10 10 10 10 10 5 5 Average Capacity 8 | 7 9 10 10 10 9 5 5 Most Carried 10 | 2 9 9 10 10 10 4 5 Average Carried 6 | 1 6 6 9 9 7 3 3 Final Capacity 10 | 8 10 10 10 10 5 5 5 Final Carried 10 | 2 6 9 10 9 4 4 4 Class Distribution -------------------- 36% | Mutant 27% | Scavenger-Mutant 17% | Scavenger-Gunner 16% | Gunner Dominant Class ---------------- Mutant | -10/Materials Mutant | -10/Mines Scavenger-Mutant | -9/Materials Scavenger-Gunner | -8/Materials Gunner | -7/Factory Mutant | -6/Factory Scavenger-Gunner | -5/Factory Resources | -11 -10 -10 -9 -8 -7 -6 -5 ----------- Run | Yrd Mat Min Mat Mat Fac Fac Fac Matter Collected 1644 | 194 363 89 196 203 186 . 413 Remotely . | . . . . . . . . Salvage Created 2552 | . 552 101 409 807 201 . 482 Parts 163 | . 33 16 27 48 13 . 26 Haulers Intercepted 2 | . . . . 2 . . . Recyclers Shooed 2 | . . . . 2 . . . Parts Field Recycled . | . . . . . . . . Retrieved Matter . | . . . . . . . . Parts Self-Destructed . | . . . . . . . . Prevented . | . . . . . . . . Kills | -11 -10 -10 -9 -8 -7 -6 -5 ------- Run | Yrd Mat Min Mat Mat Fac Fac Fac Combat Hostiles Destroyed 66 | . 14 6 12 20 5 . 9 Melee 1 | . . . . . . . 1 Guns 39 | . 7 . 6 16 4 . 6 Cannons 19 | . 5 6 6 . . . 2 AOE 6 | . 2 . . 4 . . . Classes Destroyed 12 | . 4 1 . 4 2 . 1 Worker 5 | . 2 . 1 . 1 . 1 Builder 3 | . . 1 . 1 1 . . Tunneler 1 | . . . . 1 . . . Hauler 2 | . . . . 2 . . . Recycler 2 | . . . . 2 . . . Watcher 3 | . 3 . . . . . . Swarmer 26 | . 4 6 4 10 2 . . Grunt 30 | . 10 . 8 9 . . 3 Brawler 1 | . . . . 1 . . . Sentry 2 | . . . . . 1 . 1 Hunter 1 | . . . . . . . 1 Programmer 6 | . . . . . 2 . 4 Best Kill Streak 7 | . 4 3 4 7 2 . 2 Combat Bots Only 6 | . 3 3 4 6 2 . 2 Max Kills in Single Turn 7 | . 2 1 1 7 2 . 1 Gunslinging . | . . . . . . . . Exploded 3 | . 1 . . 3 . . . Melee 1 | . . . . . . . 1 Uniques/NPCs Destroyed . | . . . . . . . . Combat | -11 -10 -10 -9 -8 -7 -6 -5 -------- Run | Yrd Mat Min Mat Mat Fac Fac Fac Hostile Shots Fired 774 | . 119 37 68 133 178 12 227 Missed 266 | . 40 10 22 56 69 6 63 Damage Taken 7933 | . 934 223 546 1581 1470 56 3123 Core 2335 | . 165 26 154 388 584 7 1011 Absorbed by Shields 256 | . . . . . . 31 225 Core Remaining (%) 54 | 100 . 23 61 29 16 99 . Volleys Fired 226 | . 62 18 44 40 21 . 41 Largest 3 | . 2 1 2 3 3 . 3 Hottest 231 | . 75 60 88 139 154 . 231 Shots Fired 436 | . 106 20 69 108 43 . 90 Gun 335 | . 80 . 32 108 34 . 81 Cannon 98 | . 25 19 37 . 8 . 9 Launcher 3 | . 1 1 . . 1 . . Special . | . . . . . . . . Kinetic 189 | . 60 . 25 44 16 . 44 Thermal 145 | . . 19 44 37 10 . 35 Explosive 3 | . 1 1 . . 1 . . Electromagnetic 99 | . 45 . . 27 16 . 11 Robot Hit Streak 11 | . 10 6 5 8 4 . 11 Robot Miss Streak 10 | . 4 4 4 6 7 . 10 Penetration Max 1 | . . . . . . . 1 Secondary Targets 5 | . 2 . . 1 1 . 1 Max Gunslinging Chain 1 | . 1 . . 1 1 . 1 Shots Hit Robots 251 | . 61 12 34 58 24 . 62 Core Hits 150 | . 25 8 18 41 28 . 30 Critical Kills 2 | . . . . 1 . . 1 Critical Parts Destroyed . | . . . . . . . . Critical Strikes 8 | . 2 . . 1 2 . 3 Burn 4 | . . . . . 2 . 2 Destroy 1 | . . . . 1 . . . Blast 1 | . 1 . . . . . . Corrupt 1 | . 1 . . . . . . Smash 1 | . . . . . . . 1 Melee Attacks 3 | . . . . . . . 3 Impact 3 | . . . . . . . 3 Slashing . | . . . . . . . . Piercing . | . . . . . . . . Sneak Attacks . | . . . . . . . . Combat Hostiles . | . . . . . . . . Follow-up Attacks . | . . . . . . . . Damage Inflicted 6268 | . 1429 230 499 1871 794 . 1445 Guns 3290 | . 706 . 200 972 294 . 1118 Cannons 1065 | . 283 194 299 . 91 . 198 Explosions 1775 | . 440 30 . 896 409 . . Melee 120 | . . . . . . . 120 Ramming 18 | . . 6 . 3 . . 9 Kinetic 2072 | . 584 . 160 483 171 . 674 Thermal 2666 | . 348 194 339 1114 102 . 569 Explosive 531 | . 92 30 . . 409 . . Electromagnetic 861 | . 405 . . 271 112 . 73 Impact 120 | . . . . . . . 120 Slashing . | . . . . . . . . Piercing . | . . . . . . . . Highest Corruption 9 | . 3 3 . 5 3 1 9 Average Corruption 3 | . 2 3 . 5 1 1 5 Corruption Purged . | . . . . . . . . Corruption Blocked . | . . . . . . . . Effects 76 | . 15 19 . 8 9 . 25 Message Errors 22 | . 6 4 . 3 1 . 8 Matter Fused 15 | . 3 4 . 1 2 . 5 Heat Flow Errors 11 | . 1 4 . . 3 . 3 Energy Discharges 10 | . 1 1 . 2 2 . 4 Parts Fused 1 | . 1 . . . . . . Data Loss (minor) 8 | . 2 3 . . . . 3 Data Loss (major) 4 | . 1 . . 2 . . 1 Misfires 3 | . . 2 . . . . 1 Alerts 2 | . . 1 . . 1 . . Overload Shots . | . . . . . . . . Overflow Damage 256 | . 11 . . 224 . . 21 Projectiles . | . . . . . . . . Explosions 235 | . 11 . . 224 . . . Melee 21 | . . . . . . . 21 Knockbacks 13 | . 7 . . . . . 6 Impact 1 | . . . . . . . 1 Kinetic 10 | . 6 . . . . . 4 Secondary 2 | . 1 . . . . . 1 Self-Inflicted Damage 240 | . 91 . . 149 . . . Shots 8 | . 4 . . 4 . . . Rammed 1 | . . . . 1 . . . Targets Rammed 9 | . . 7 . 1 . . 1 Kicked 8 | . . 7 . . . . 1 Crushed . | . . . . . . . . Highest Temperature 564 | . 231 266 137 450 250 . 564 Average Temperature 103 | . 81 93 37 91 84 . 185 Received Heat Transfer 1151 | . 309 . 294 180 54 . 314 Effects 15 | . . . . 1 . . 14 Shutdowns 6 | . . . . 1 . . 5 Matter Decay 3 | . . . . . . . 3 Short Circuit 2 | . . . . . . . 2 Damage (minor) 1 | . . . . . . . 1 Damage (major) 3 | . . . . . . . 3 Siege Activations . | . . . . . . . . Robots Corrupted 1 | . . . . . 1 . . Combat Hostiles 1 | . . . . . 1 . . Parts Fried 2 | . 1 . . . 1 . . Impact Corruptions 1 | . . . . . . . 1 Robots Melted . | . . . . . . . . Combat Hostiles . | . . . . . . . . Parts Melted 5 | . 1 . . 2 1 . 1 Heat Transferred 4338 | . 400 407 740 1316 333 . 1142 Parts Sabotaged . | . . . . . . . . Parts Stolen . | . . . . . . . . Parts Stripped . | . . . . . . . . Power Chain Reactions 8 | . 6 . . 2 . . . Alert | -11 -10 -10 -9 -8 -7 -6 -5 ------- Run | Yrd Mat Min Mat Mat Fac Fac Fac Peak Influence 558 | . 197 87 162 558 297 . 145 Initial 217 | . . 6 . 49 217 . . Average 75 | . 69 47 62 302 97 . 24 Maximum Alert Level 2 | . . . . 2 1 . . Low Security (%) 88 | 100 100 100 100 27 71 100 100 Level 1 8 | . . . . 42 28 . . Level 2 2 | . . . . 30 . . . Level 3 . | . . . . . . . . Level 4 . | . . . . . . . . Level 5 . | . . . . . . . . High Security . | . . . . . . . . Max Security . | . . . . . . . . Squads Dispatched 18 | . 3 . 2 6 2 1 4 Investigation 3 | . 3 . . . . . . Extermination 5 | . . . . . 2 1 2 Reinforcement 5 | . . . 2 1 . . 2 Assault 1 | . . . . 1 . . . Garrison 4 | . . . . 4 . . . Intercept . | . . . . . . . . Searches Triggered . | . . . . . . . . Construction Impeded . | . . . . . . . . Haulers Reinforced . | . . . . . . . . Active Scanning Responses . | . . . . . . . . Cargo Convoy Interrupts 1 | . . . . . 1 . . Stealth | -11 -10 -10 -9 -8 -7 -6 -5 --------- Run | Yrd Mat Min Mat Mat Fac Fac Fac Distress Signals 9 | . 1 . 3 4 . . 1 Communications Jammed 1 | . . . . . 1 . . Distress Signals 1 | . . . . . 1 . . Times Spotted 120 | . 24 6 21 29 20 1 19 Peak Tracking Total 11 | . 4 3 5 5 11 1 6 Tactical Retreats 7 | . 2 . 1 2 1 . 1 Traps | -11 -10 -10 -9 -8 -7 -6 -5 ------- Run | Yrd Mat Min Mat Mat Fac Fac Fac Traps Triggered 5 | . 4 . . 1 . . . Indirectly . | . . . . . . . . Trap Hack Attempts . | . . . . . . . . Triggered . | . . . . . . . . Disarmed . | . . . . . . . . Reprogrammed . | . . . . . . . . Reused . | . . . . . . . . Traps Extracted . | . . . . . . . . Installed . | . . . . . . . . Triggered . | . . . . . . . . Machines | -11 -10 -10 -9 -8 -7 -6 -5 ---------- Run | Yrd Mat Min Mat Mat Fac Fac Fac Machines Disabled 20 | . 4 . . 13 2 . 1 Max in Single Turn 10 | . 1 . . 10 1 . 1 Garrison Access 1 | . . . . 1 . . . Machines Repaired . | . . . . . . . . Machines Dismantled . | . . . . . . . . Machines Sabotaged . | . . . . . . . . Overloaded Fab Kills . | . . . . . . . . Hacking | -11 -10 -10 -9 -8 -7 -6 -5 --------- Run | Yrd Mat Min Mat Mat Fac Fac Fac Machines Accessed 15 | . 8 . 1 1 2 1 2 Terminals 11 | . 7 . 1 1 . 1 1 Fabricators 1 | . . . . . 1 . . Repair Stations . | . . . . . . . . Recycling Units 2 | . 1 . . . . . 1 Scanalyzers . | . . . . . . . . Garrison Access 1 | . . . . . 1 . . Total Hacks 44 | . 23 . 2 4 3 2 10 Successful 31 | . 16 . 1 3 1 2 8 Failed 13 | . 7 . 1 1 2 . 2 Catastrophic 2 | . . . 1 . 1 . . Database Lockouts . | . . . . . . . . Manual . | . . . . . . . . Terminals 34 | . 22 . 2 4 . 2 4 Fabricators 2 | . . . . . 2 . . Repair Stations . | . . . . . . . . Recycling Units 7 | . 1 . . . . . 6 Scanalyzers . | . . . . . . . . Garrison Access 1 | . . . . . 1 . . Terminal Hacks 25 | . 15 . 1 3 . 2 4 Record 7 | . 4 . 1 . . . 2 Emergency Access Points 2 | . 2 . . . . . . Terminal Index 1 | . 1 . . . . . . Alert Level 6 | . 3 . . 2 . 1 . Unreport Threat 1 | . . . . 1 . . . Locate Traps 1 | . 1 . . . . . . Dispatch Records 1 | . 1 . . . . . . Investigation Status 1 | . 1 . . . . . . Reinforcement Status 1 | . . . . . . . 1 Recall Investigation 2 | . 1 . . . . . 1 Zone Layout 2 | . 1 . . . . 1 . Fabricator Hacks 1 | . . . . . 1 . . Network Status 1 | . . . . . 1 . . Repair Station Hacks . | . . . . . . . . Recycling Unit Hacks 5 | . 1 . . . . . 4 Process 2 | . . . . . . . 2 Report Inventory 1 | . 1 . . . . . . Retrieve Matter 2 | . . . . . . . 2 Scanalyzer . | . . . . . . . . Garrison Access Hacks . | . . . . . . . . Unauthorized Hacks . | . . . . . . . . Terminals . | . . . . . . . . Fabricators . | . . . . . . . . Repair Stations . | . . . . . . . . Recycling Units . | . . . . . . . . Scanalyzers . | . . . . . . . . Garrison Access . | . . . . . . . . Data Cores Recovered . | . . . . . . . . Used . | . . . . . . . . Hacking Detections 11 | . 6 . 1 1 1 1 1 Full Trace Events 4 | . 3 . . 1 . . . Feedback Events . | . . . . . . . . Feedback Blocked . | . . . . . . . . Robot Schematics Acquired . | . . . . . . . . Robots Built . | . . . . . . . . Authchips . | . . . . . . . . Time . | . . . . . . . . Total Robot Build Rating . | . . . . . . . . Part Schematics Acquired . | . . . . . . . . Parts Built . | . . . . . . . . Authchips . | . . . . . . . . Time . | . . . . . . . . Total Part Build Rating . | . . . . . . . . Parts Repaired . | . . . . . . . . Time . | . . . . . . . . Parts Recycled . | . . . . . . . . Recycled Matter 1 | . . . . . . . 1 Retrieved Matter 1 | . . . . . . . 1 Retrieved Components . | . . . . . . . . Parts Scanalyzed . | . . . . . . . . Part Schematics Acquired . | . . . . . . . . Parts Damaged . | . . . . . . . . Bothacking | -11 -10 -10 -9 -8 -7 -6 -5 ------------ Run | Yrd Mat Min Mat Mat Fac Fac Fac Used RIF Installer . | . . . . . . . . Robots Hacked . | . . . . . . . . Non-combat . | . . . . . . . . Combat . | . . . . . . . . Robot Hacks Applied . | . . . . . . . . Relay Couplers Released . | . . . . . . . . Fabnet Peak Effective % . | . . . . . . . . Robots Rewired . | . . . . . . . . Allies Hacked . | . . . . . . . . Hacks Repelled . | . . . . . . . . Allies | -11 -10 -10 -9 -8 -7 -6 -5 -------- Run | Yrd Mat Min Mat Mat Fac Fac Fac Total Allies 3 | . . 3 . . . . . Largest Group 3 | . . 3 3 . . . . Highest-Rated Group 40 | . . 40 40 . . . . Highest-Rated Ally 16 | . . 16 16 . . . . Total Orders . | . . . . . . . . Ally Attacks 26 | . . . 26 . . . . Total Damage 293 | . . . 293 . . . . Kills 5 | . . . 5 . . . . Allies Corrupted . | . . . . . . . . Allies Melted . | . . . . . . . . Intel | -11 -10 -10 -9 -8 -7 -6 -5 ------- Run | Yrd Mat Min Mat Mat Fac Fac Fac Robot Analysis Total . | . . . . . . . . Derelict Logs Recovered 2 | . . 2 . . . . . Drone Launches . | . . . . . . . . Drone Recoveries . | . . . . . . . . Exploration | -11 -10 -10 -9 -8 -7 -6 -5 ------------- Run | Yrd Mat Min Mat Mat Fac Fac Fac Turns Passed 7715 | 92 1654 1019 1004 625 1387 589 1345 Spaces Moved 3931 | 60 987 435 640 345 532 305 627 Core 267 | 18 . . . 2 67 127 53 Treads . | . . . . . . . . Legs 2968 | 42 987 182 481 343 465 178 290 Wheels 240 | . . . . . . . 240 Hover 44 | . . . . . . . 44 Flight 412 | . . 253 159 . . . . Fastest Speed 50 | 50 120 190 110 120 50 100 50 Average Speed 169 | 135 144 219 130 123 244 188 171 Slowest Speed 650 | 250 260 370 190 300 350 300 650 Overloaded Moves . | . . . . . . . . Propulsion Burnouts . | . . . . . . . . Robots Hopped . | . . . . . . . . Cave-ins Triggered . | . . . . . . . . Exploration Rate (%) 33 | 5 99 76 31 28 12 8 12 Regions Visited 7 Branch Regions 1 Pre-discovered Areas 2 | . . 2 . . . . . Known Exits Taken 3 | . 1 1 1 . . . . Unknown Exits Taken 4 | 1 . . . 1 1 1 . Scrap Searched 2 | . . 2 . . . . . Spaces Dug 7 | . 7 . . . . . . Terrain Destroyed 67 | . 25 7 . 29 6 . . Melee . | . . . . . . . . Projectile . | . . . . . . . . AOE 67 | . 25 7 . 29 6 . . Terrain Rammed . | . . . . . . . . Walls Destroyed . | . . . . . . . . Machines Disabled . | . . . . . . . . Actions | -11 -10 -10 -9 -8 -7 -6 -5 --------- Run | Yrd Mat Min Mat Mat Fac Fac Fac Total 4561 | 67 1104 469 750 461 581 317 812 Wait 176 | . 29 1 21 36 1 . 88 Move 3925 | 59 986 434 639 345 531 304 627 Hop . | . . . . . . . . Pick Up 72 | 1 10 5 15 12 10 4 15 Fast Attach 36 | 6 2 2 3 2 4 4 13 Attach 35 | . 7 1 2 5 9 4 7 Detach . | . . . . . . . . Swap 37 | 1 4 1 10 9 3 1 8 Drop 43 | . 4 . 16 12 2 . 9 Fire 226 | . 62 18 44 40 21 . 41 Melee 3 | . . . . . . . 3 Ram . | . . . . . . . . Kick 8 | . . 7 . . . . 1 Crush . | . . . . . . . . Escape Stasis . | . . . . . . . . Rewire . | . . . . . . . . Trap . | . . . . . . . . Miscellaneous . | . . . . . . . . Route ------- -11/Scrapyard -10/Materials (discovered 4 exits: *Mat x3 / *Min) -10/Mines (discovered 2 exits: *Mat x2) -9/Materials -8/Materials -7/Factory -6/Factory (discovered 2 exits: *Fac x2) -5/Factory History --------- Turn | Location | Event 19 | -11/Scrapyard | Discovered new exit (range 16) 93 | -11/Scrapyard | Entered Materials 234 | -10/Materials | Discovered new exit (range 16) 309 | -10/Materials | Build established: Mutant 540 | -10/Materials | Discovered new exit (range 11) 862 | -10/Materials | Identified exit to Mines 1023 | -10/Materials | Discovered new exit (range 12) 1051 | -10/Materials | Identified exit to Materials 1190 | -10/Materials | Core integrity fell below 50% 1309 | -10/Materials | Discovered exit to Materials (range 16) 1747 | -10/Materials | Entered Mines 1755 | -10/Mines | Learned location of Zion (-6) 1912 | -10/Mines | Found a hidden stash of uninstalled traps 2283 | -10/Mines | Discovered exit to Materials (range 8) 2429 | -10/Mines | Received a Rocket Launcher from a helpful Derelict 2546 | -10/Mines | Assisted by bots powering up and referring to "LRC-V3" 2573 | -10/Mines | Build established: Scavenger-Mutant 2573 | -10/Mines | Discovered exit to Materials (range 10) 2766 | -10/Mines | Entered Materials 2766 | -9/Materials | Accompanied by 3 allies 2766 | -9/Materials | Evolved 2 slots: Propulsion x1, Utility x1 2929 | -9/Materials | Discovered new exit (range 12) 3660 | -9/Materials | Identified exit to Materials 3770 | -9/Materials | Entered another Materials area 3770 | -8/Materials | Evolved 2 slots: Power x1, Weapon x1 3888 | -8/Materials | Garrison activated, responded to threat 4089 | -8/Materials | Build established: Scavenger-Gunner 4258 | -8/Materials | Garrison activated, responded to threat 4361 | -8/Materials | Discovered new exit (range 8) 4385 | -8/Materials | Core integrity fell below 50% 4395 | -8/Materials | Entered Factory 4395 | -7/Factory | Evolved 2 slots: Utility x2 4420 | -7/Factory | Lost 7 parts (4n1u2w) 4514 | -7/Factory | Discovered new exit (range 9) 4695 | -7/Factory | Build established: Scavenger-Mutant 5062 | -7/Factory | Build established: Gunner 5729 | -7/Factory | Cargo convoy interrupted 5751 | -7/Factory | Core integrity fell below 50% 5754 | -7/Factory | Core integrity fell below 20% 5780 | -7/Factory | Lost 9 parts (2p1n2u4w) 5782 | -7/Factory | Entered another Factory area 5782 | -6/Factory | Evolved 2 slots: Propulsion x1, Utility x1 6033 | -6/Factory | Build established: Mutant 6227 | -6/Factory | Discovered new exit (range 9) 6294 | -6/Factory | Discovered new exit (range 17) 6371 | -6/Factory | Entered another Factory area 6371 | -5/Factory | Evolved 2 slots: Utility x1, Weapon x1 6551 | -5/Factory | Build established: Gunner 6951 | -5/Factory | Build established: Scavenger-Gunner 7259 | -5/Factory | Lost 10 parts (2p1n4u3w) 7348 | -5/Factory | Lost 6 parts (1p2n1u2w) 7646 | -5/Factory | Core integrity fell below 50% 7704 | -5/Factory | Core integrity fell below 20% 7716 | -5/Factory | Destroyed by Y-64 Sentinel with Wave Gun Last Messages --------------- Penetrated by Slug. Slug penetrates H-66 Slayer. Tesla Rifle destroyed. Penetrated by Slug. Adv. ECM Suite destroyed. Penetrated by Slug. Imp. Heat Sink destroyed. Penetrated by Slug. Slug penetrates H-66 Slayer. Wave Gun destroyed. T-07 Excavator suffers critical hit (Destroy). Penetrated by Slug. Acquired Focal Shield. Nuclear Reactor explodes. R-10 Processor destroyed. Nuclear Reactor explodes. Acquired Adv. Signal Interpreter. System corrupted: Component data lost. The unstable cave ceiling collapses. Nuclear Reactor explodes. Map ----- +----------------------------------------------------+ | | | | | | | | | | | | | | | | | | | | | | | | | | | | | | | | | | | | | | | | | ??????????????#### ####??????????????????? | | ??????????????? """ #??????????????????? | | ?????????????#? """ "Y" #??????????????????? | | ?????????????? """ " " #??????????????????? | | ?????????????# """ #??????????????????? | | ?????????????# @ #??????????????????? | | ????????????# #??????????????????? | | ???????? #??????????????????? | | ?????????#### #??????????????????? | | ????????????# #??????????????????? | | ????????????# ##??????????????????? | | ??????######### [ #################?????? | | ??????# # * ###??# #?????? | | ??????# #????# #?????? | | ??????# # #????# #?????? | | ?????????""" """ + hh #????# #?????? | | ???????? """ """ # #????# #?????? | | ??????# """ """ # YY #????# #?????? | | ??????#* # #????# #?????? | | ??????# """ """ # #????# #?????? | | ???????? """ """ # #????# #?????? | | ?????????""" """ + #????# #?????? | | ??????# # #????# #?????? | | ??????# # #????# #?????? | | ??????############## #########"##+############ | | ???????? " | | ??????? "%" | | ???????? " * | | ???????? | | ????????? % | +----------------------------------------------------+ Best States ------------- Heat Dissipation 59 Energy Generation 32 Energy Capacity 365 Matter Stores 300 Matter Capacity 300 Sight Range 18 Robot Scan Range 16 Terrain Scan Density 10 ECM Strength 2 Jamming Range 12 Phase Shifting 5 Evasion (%) 55 Targeting Accuracy 5 Target Analysis 5 Particle Charging 15 Kinecelleration 30 Offensive Hacking 10 Item Schematics ----------------- None Robot Schematics ------------------ None Fabricated ------------ Nothing Alien Tech Used ----------------- None Achievements -------------- GoHome() It Was An Accident, I Swear Maybe Next Time I'll Detach My Launcher Troublemaker Challenges ------------ None Game ------ Seed ComponentDamperHumpback Manual? 0 Play Time 00:58:09 Cumulative 8.2 hours Start 2024.05.16 @ 15:10:07 End 2024.05.16 @ 16:03:03 Sessions 1 Manual Loads 0 Difficulty Rogue Special Mode None Game No. 9 Rogue 4 Adventurer 5 Explorer 0 Win Type - Total 0 Types 0/0/0/0/0/0/0/0/0 Lore% 17 Gallery% 19 Achievement% 17 Wizard Run 0 Options --------- Layout 1 ASCII 0 Keyboard 0 Movement Arrows Keybinds 0 Fullscreen 1 Font 24/Tamsyn Map View 50x35 Zoom Use 0% Tactical HUD 0 Map Filters NONE Filters NONE Steam 1 RUN: db717359-9e78-44b1-bceb-ef6d1f6b87dc